Cogmind - Beta 14 *** ADVENTURER MODE // 2024.09.23 @ 19:20:34 // Winter2019/RPGLIKE Player: Gallgagger Result: Self-destructed Performance ------------- Evolutions (3) 1500 Regions Visited (6) 1200 Robots Destroyed (91) 455 Value Destroyed (2410) 2410 Prototype IDs (10) 200 Alien Tech Used (0) 0 Bonus (154) 154 TOTAL SCORE: 5919 Bonus ------- High Alert Combat Kills 148 Follower Combat Kills 41 Friendly Fire -35 Cogmind --------- Core Integrity 419/600 Matter 300/300 Energy 470/470 System Corruption 0% Temperature Cool (0) Movement Flying (23) Location -7/Factory Parts ------- > --- POWER (3) -------- Light Deuterium Engine Nuclear Core Improved Deuterium Engine > --- PROPULSION (5) --- Cesium-ion Thruster Cooled VTOL Module Cooled VTOL Module Cooled VTOL Module Cooled VTOL Module > --- UTILITY (6) ------ Improved Signal Interpreter Reaction Control System Improved Light Armor Plating Makeshift System Shield High-powered Tractor Beam Splice Drone Bay (6/6) > --- WEAPON (2) ------- High-powered Shotgun High-powered Shotgun > --- INVENTORY (1) ---- Advanced EMP Blaster Peak State ------------ > --- POWER ------------ Light Ion Engine Nuclear Core Heavy Deuterium Engine > --- PROPULSION ------- Cesium-ion Thruster Cooled VTOL Module Cooled VTOL Module Cooled VTOL Module Cooled VTOL Module > --- UTILITY ---------- Improved Signal Interpreter Reaction Control System Improved Medium Armor Plating Makeshift System Shield High-powered Tractor Beam Splice Drone Bay > --- WEAPON ----------- High-powered Shotgun High-powered Shotgun > --- INVENTORY -------- Advanced EMP Blaster [Rating: 62] Favorites ----------- Power Light Ion Engine Engine Light Ion Engine Power Core Nuclear Core Propulsion Flight Unit Wheel Compact Wheel Flight Unit Flight Unit Utility Improved Signal Interpreter Device Reaction Control System Processor Improved Signal Interpreter Hackware Makeshift System Shield Protection Utility Shielding Weapon High-powered Shotgun Energy Gun Small Laser Ballistic Gun High-powered Shotgun Launcher Grenade Launcher Build | -11 -10 -10 -10 -9 -8 -7 ------- Run | Yrd Mat Min Exi Min Mat Fac Slots Evolved 12 | 4 1 1 . 1 . 5 Power 2 | 1 . . . . . 1 Propulsion 4 | 1 1 . . . . 2 Utility 5 | 1 . 1 . 1 . 2 Weapon 1 | 1 . . . . . . Parts Attached 43 | 6 6 3 . 5 10 13 Power 6 | 2 . . . . . 4 Engine 5 | 2 . . . . . 3 Core 1 | . . . . . . 1 Reactor . | . . . . . . . Propulsion 11 | 2 3 . . . 1 5 Treads . | . . . . . . . Leg . | . . . . . . . Wheel 2 | 2 . . . . . . Hover . | . . . . . . . Flight 9 | . 3 . . . 1 5 Utility 14 | . 3 3 . 4 . 4 Device 4 | . . 1 . 2 . 1 Storage . | . . . . . . . Processor 2 | . 1 1 . . . . Hackware 1 | . . . . 1 . . Protection 7 | . 2 1 . 1 . 3 Artifact . | . . . . . . . Weapon 12 | 2 . . . 1 9 . Energy Gun 2 | 2 . . . . . . Energy Cannon . | . . . . . . . Ballistic Gun 7 | . . . . . 7 . Ballistic Cannon . | . . . . . . . Launcher 3 | . . . . 1 2 . Special Weapon . | . . . . . . . Impact Weapon . | . . . . . . . Slashing Weapon . | . . . . . . . Piercing Weapon . | . . . . . . . Special Melee Weapon . | . . . . . . . Unidentified Prototypes 5 | . . . . 1 2 2 Parts Lost . | . . . . . . . Power . | . . . . . . . Propulsion . | . . . . . . . Utility . | . . . . . . . Weapon . | . . . . . . . Highest Loss Streak . | . . . . . . . To Critical Strikes . | . . . . . . . Average Slot Usage (%) 99 | . 96 100 100 100 99 97 Engine 18 | . 22 21 20 18 18 12 Flight 29 | . 24 32 30 27 27 32 Device 9 | . . 2 10 16 18 16 Processor 9 | . 8 10 10 9 9 6 Hackware 3 | . . . . 6 9 6 Protection 6 | . 10 10 10 2 . 3 Energy Gun 12 | . 22 21 20 10 . . Ballistic Gun 5 | . . . . . 16 13 Peak Build Rating 62 | 6 9 16 16 24 30 62 Average Rating 23 | 5 8 10 16 21 29 50 On Entrance 14 | . 6 9 16 16 24 30 Naked Turns . | . . . . . . . Heaviest Build 41 | 11 13 20 20 21 26 41 Greatest Support 45 | 26 26 22 22 22 28 45 Greatest Overweight (x) 1 | . . . . . 1 . Average Overweight (x) . | . . . . . . . Largest Inventory Capacity 1 | . . . 1 1 1 1 Average Capacity . | . . . . 1 1 1 Most Carried 1 | . . . 1 1 1 1 Average Carried . | . . . . . . 1 Final Capacity 1 | . . . 1 1 1 1 Final Carried 1 | . . . 1 1 1 1 Class Distribution -------------------- 44% | Mutant 30% | Hacker-Sprinter 14% | Hacker-Mutant 10% | Commander-Mutant Dominant Class ---------------- Mutant | -10/Materials Mutant | -10/Mines Commander-Mutant | -10/Exiles Hacker-Mutant | -9/Mines Hacker-Sprinter | -8/Materials Hacker-Sprinter | -7/Factory Resources | -11 -10 -10 -10 -9 -8 -7 ----------- Run | Yrd Mat Min Exi Min Mat Fac Matter Collected 1860 | 260 60 30 . 260 664 586 Remotely 258 | . . . . . . 258 Salvage Created 2643 | . 484 16 . 260 1009 874 Parts 149 | . 32 5 . 17 56 39 Haulers Intercepted 7 | . 2 . . . 2 3 Recyclers Shooed 1 | . . . . 1 . . Parts Field Recycled . | . . . . . . . Retrieved Matter . | . . . . . . . Parts Self-Destructed . | . . . . . . . Prevented . | . . . . . . . Kills | -11 -10 -10 -10 -9 -8 -7 ------- Run | Yrd Mat Min Exi Min Mat Fac Combat Hostiles Destroyed 80 | . 10 5 . 25 26 14 Guns 52 | . 7 5 . 2 24 14 AOE 28 | . 3 . . 23 2 . Classes Destroyed 13 | . 5 . . 3 3 2 Worker 2 | . . . . 1 1 . Builder 1 | . . . . . . 1 Tunneler 1 | . . . . 1 . . Hauler 7 | . 2 . . . 2 3 Recycler 3 | . 1 . . 1 1 . Operator 1 | . . . . . 1 . Watcher 11 | . 3 . . . 2 6 Swarmer 26 | . 6 3 . 6 11 . Grunt 20 | . 4 2 . 3 4 7 Brawler 1 | . . . . . . 1 Sentry 16 | . . . . . 10 6 Hunter 1 | . . . . . 1 . Assembled 15 | . . . . 15 . . Best Kill Streak 18 | . 6 3 . 18 10 3 Combat Bots Only 17 | . 5 3 . 17 10 2 Max Kills in Single Turn 3 | . 3 1 . 3 2 1 Gunslinging . | . . . . . . . Exploded 3 | . 2 . . 3 1 . Melee . | . . . . . . . Uniques/NPCs Destroyed 1 | . . . . 1 . . YI-UF0 (-9/Mines) Combat | -11 -10 -10 -10 -9 -8 -7 -------- Run | Yrd Mat Min Exi Min Mat Fac Hostile Shots Fired 328 | . 32 20 . 37 83 156 Missed 194 | . 21 10 . 22 43 98 Damage Taken 1448 | . 178 98 . 188 552 432 Core 1101 | . 138 74 . 139 434 316 Absorbed by Shields . | . . . . . . . Redirected to Core 928 | . 134 63 . 134 378 219 Redirected to Shielding 18 | . . . . . . 18 Ignored by Resistances 429 | . 52 29 . 55 157 136 Core Remaining (%) 95 | 100 . . . 92 93 . Volleys Fired 195 | . 27 12 . 34 65 57 Largest 2 | . 2 2 . 2 2 2 Hottest 80 | . 80 80 . 80 50 50 Shots Fired 355 | . 52 24 . 37 128 114 Gun 327 | . 52 24 . 12 125 114 Cannon . | . . . . . . . Launcher 28 | . . . . 25 3 . Special . | . . . . . . . Kinetic 239 | . . . . . 125 114 Thermal 47 | . 25 12 . 10 . . Explosive 25 | . . . . 25 . . Electromagnetic 44 | . 27 12 . 2 3 . Robot Hit Streak 19 | . 8 12 . 13 19 19 Robot Miss Streak 5 | . 2 1 . 3 5 3 Penetration Max . | . . . . . . . Secondary Targets 5 | . 1 2 . . 1 1 Max Gunslinging Chain 1 | . 1 1 . . 1 1 Shots Hit Robots 267 | . 34 21 . 23 96 93 Core Hits 194 | . 21 9 . 47 56 61 Critical Kills 3 | . . . . . . 3 Critical Parts Destroyed 1 | . . . . . 1 . Critical Strikes 6 | . 2 . . . 1 3 Destroy 4 | . . . . . 1 3 Corrupt 2 | . 2 . . . . . Melee Attacks . | . . . . . . . Impact . | . . . . . . . Slashing . | . . . . . . . Piercing . | . . . . . . . Sneak Attacks . | . . . . . . . Combat Hostiles . | . . . . . . . Follow-up Attacks . | . . . . . . . Damage Inflicted 6665 | . 752 256 . 1603 1908 2146 Guns 4736 | . 493 256 . 116 1804 2067 Cannons . | . . . . . . . Explosions 1929 | . 259 . . 1487 104 79 Melee . | . . . . . . . Ramming . | . . . . . . . Kinetic 3871 | . . . . . 1804 2067 Thermal 778 | . 434 124 . 93 48 79 Explosive 1487 | . . . . 1487 . . Electromagnetic 529 | . 318 132 . 23 56 . Impact . | . . . . . . . Slashing . | . . . . . . . Piercing . | . . . . . . . Highest Corruption 2 | . . . . . 2 . Average Corruption 1 | . . . . . 1 . Corruption Purged . | . . . . . . . Corruption Blocked . | . . . . . . . Effects 5 | . . . . . 5 . Message Errors 2 | . . . . . 2 . Matter Fused 1 | . . . . . 1 . Data Loss (minor) 1 | . . . . . 1 . Misfires 1 | . . . . . 1 . Overload Shots . | . . . . . . . Overflow Damage 45 | . . . . 45 . . Projectiles . | . . . . . . . Explosions 45 | . . . . 45 . . Melee . | . . . . . . . Knockbacks . | . . . . . . . Impact . | . . . . . . . Kinetic . | . . . . . . . Secondary . | . . . . . . . Self-Inflicted Damage 216 | . 112 . . 4 100 . Shots 5 | . 2 . . 1 2 . Rammed . | . . . . . . . Targets Rammed . | . . . . . . . Kicked . | . . . . . . . Crushed . | . . . . . . . Highest Temperature 369 | . 138 . . . 369 . Average Temperature 64 | . 47 . . . 193 . Received Heat Transfer 435 | . 6 57 . 12 135 225 Effects 1 | . . . . . 1 . Shutdowns 1 | . . . . . 1 . Siege Activations . | . . . . . . . Robots Corrupted . | . . . . . . . Combat Hostiles . | . . . . . . . Parts Fried 1 | . 1 . . . . . Impact Corruptions . | . . . . . . . Robots Melted . | . . . . . . . Combat Hostiles . | . . . . . . . Parts Melted 1 | . . 1 . . . . Heat Transferred 1250 | . 675 275 . 200 50 50 Parts Sabotaged . | . . . . . . . Parts Stolen . | . . . . . . . Parts Stripped . | . . . . . . . Power Chain Reactions 2 | . 2 . . . . . Alert | -11 -10 -10 -10 -9 -8 -7 ------- Run | Yrd Mat Min Exi Min Mat Fac Peak Influence 796 | . 503 166 . 341 796 450 Initial 140 | . . 66 . . 112 140 Average 198 | . 223 62 . 201 449 199 Maximum Alert Level 3 | . 2 . . 1 3 2 Low Security (%) 57 | 100 50 100 . 40 13 41 Level 1 28 | . 30 . . 59 26 55 Level 2 11 | . 18 . . . 46 3 Level 3 2 | . . . . . 13 . Level 4 . | . . . . . . . Level 5 . | . . . . . . . High Security . | . . . . . . . Max Security . | . . . . . . . Squads Dispatched 9 | . . . . . 6 3 Investigation 2 | . . . . . 1 1 Extermination . | . . . . . . . Reinforcement 2 | . . . . . 1 1 Assault . | . . . . . . . Garrison 5 | . . . . . 4 1 Intercept . | . . . . . . . Searches Triggered . | . . . . . . . Construction Impeded . | . . . . . . . Haulers Reinforced 1 | . . . . . . 1 Active Scanning Responses . | . . . . . . . Cargo Convoy Interrupts . | . . . . . . . Stealth | -11 -10 -10 -10 -9 -8 -7 --------- Run | Yrd Mat Min Exi Min Mat Fac Distress Signals 3 | . 1 . . . 2 . Communications Jammed . | . . . . . . . Distress Signals . | . . . . . . . Times Spotted 127 | . 20 6 . 33 38 30 Peak Tracking Total 13 | . 6 2 . 13 7 4 Tactical Retreats 8 | . 2 . . . 6 . Traps | -11 -10 -10 -10 -9 -8 -7 ------- Run | Yrd Mat Min Exi Min Mat Fac Traps Triggered 3 | . . . . . 1 2 Indirectly . | . . . . . . . Trap Hack Attempts . | . . . . . . . Triggered . | . . . . . . . Disarmed . | . . . . . . . Reprogrammed . | . . . . . . . Reused . | . . . . . . . Traps Extracted . | . . . . . . . Installed . | . . . . . . . Triggered . | . . . . . . . Machines | -11 -10 -10 -10 -9 -8 -7 ---------- Run | Yrd Mat Min Exi Min Mat Fac Machines Disabled 10 | . 2 . . 1 3 4 Max in Single Turn 4 | . 2 . . 1 2 4 Machines Repaired . | . . . . . . . Machines Dismantled . | . . . . . . . Machines Sabotaged . | . . . . . . . Overloaded Fab Kills . | . . . . . . . Hacking | -11 -10 -10 -10 -9 -8 -7 --------- Run | Yrd Mat Min Exi Min Mat Fac Machines Accessed 30 | . 5 2 . 1 9 13 Terminals 26 | . 5 1 . . 8 12 Fabricators . | . . . . . . . Repair Stations . | . . . . . . . Recycling Units . | . . . . . . . Scanalyzers . | . . . . . . . Garrison Access 2 | . . . . . 1 1 Total Hacks 136 | . 16 4 . 1 35 80 Successful 88 | . 11 2 . 1 17 57 Failed 48 | . 5 2 . . 18 23 Catastrophic 7 | . . 1 . . 4 2 Database Lockouts . | . . . . . . . Manual 116 | . 15 1 . . 32 68 Terminals 131 | . 16 3 . . 33 79 Fabricators . | . . . . . . . Repair Stations . | . . . . . . . Recycling Units . | . . . . . . . Scanalyzers . | . . . . . . . Garrison Access 3 | . . . . . 2 1 Terminal Hacks 37 | . 5 1 . 1 8 22 Part Schematic 1 | . . . . . . 1 Robot Analysis 10 | . 3 . . . . 7 Prototype ID Bank 2 | . . . . . 1 1 Open Door 2 | . . 1 . 1 . . Branch Access Points 2 | . . . . . 1 1 Terminal Index 1 | . . . . . . 1 Recycling Unit Index 1 | . . . . . . 1 Alert Level 7 | . 1 . . . 2 4 Unreport Threat 8 | . 1 . . . 4 3 Security Status 1 | . . . . . . 1 Recall Investigation 1 | . . . . . . 1 Recall Reinforcements 1 | . . . . . . 1 Fabricator Hacks . | . . . . . . . Repair Station Hacks . | . . . . . . . Recycling Unit Hacks . | . . . . . . . Scanalyzer . | . . . . . . . Garrison Access Hacks . | . . . . . . . Unauthorized Hacks 51 | . 6 1 . . 9 35 Terminals 49 | . 6 1 . . 8 34 Track 6 | . . . . . 1 5 Assimilate 7 | . . . . . 1 6 Botnet 23 | . 5 1 . . 5 12 Disrupt 2 | . . . . . . 2 Operators 3 | . . . . . . 3 Skim 8 | . 1 . . . 1 6 Fabricators . | . . . . . . . Repair Stations . | . . . . . . . Recycling Units . | . . . . . . . Scanalyzers . | . . . . . . . Garrison Access 2 | . . . . . 1 1 Reprogram 2 | . . . . . 1 1 Data Cores Recovered . | . . . . . . . Used . | . . . . . . . Hacking Detections 23 | . 3 1 . . 8 11 Full Trace Events . | . . . . . . . Feedback Events . | . . . . . . . Feedback Blocked . | . . . . . . . Robot Schematics Acquired . | . . . . . . . Robots Built . | . . . . . . . Authchips . | . . . . . . . Time . | . . . . . . . Total Robot Build Rating . | . . . . . . . Part Schematics Acquired 1 | . . . . . . 1 Parts Built . | . . . . . . . Authchips . | . . . . . . . Time . | . . . . . . . Total Part Build Rating . | . . . . . . . Parts Repaired . | . . . . . . . Time . | . . . . . . . Parts Recycled . | . . . . . . . Recycled Matter . | . . . . . . . Retrieved Matter . | . . . . . . . Retrieved Components . | . . . . . . . Parts Scanalyzed . | . . . . . . . Part Schematics Acquired . | . . . . . . . Parts Damaged . | . . . . . . . Bothacking | -11 -10 -10 -10 -9 -8 -7 ------------ Run | Yrd Mat Min Exi Min Mat Fac Used RIF Installer . | . . . . . . . Robots Hacked . | . . . . . . . Non-combat . | . . . . . . . Combat . | . . . . . . . Robot Hacks Applied . | . . . . . . . Relay Couplers Released . | . . . . . . . Fabnet Peak Effective % . | . . . . . . . Robots Rewired 2 | . . . 2 . . . Allies Hacked . | . . . . . . . Hacks Repelled . | . . . . . . . Allies | -11 -10 -10 -10 -9 -8 -7 -------- Run | Yrd Mat Min Exi Min Mat Fac Total Allies 18 | . . 6 2 . 3 7 Largest Group 7 | . . 6 5 5 2 7 Highest-Rated Group 146 | . . 120 89 56 28 146 Highest-Rated Ally 31 | . . 31 31 16 18 26 Total Orders 7 | . . 2 1 . . 4 STAY 4 | . . 1 1 . . 2 FOLLOW 3 | . . 1 . . . 2 Ally Attacks 49 | . . 4 . 39 6 . Total Damage 512 | . . 80 . 353 79 . Kills 9 | . . 1 . 7 1 . Allies Corrupted 1 | . . . . 1 . . Allies Melted . | . . . . . . . Intel | -11 -10 -10 -10 -9 -8 -7 ------- Run | Yrd Mat Min Exi Min Mat Fac Robot Analysis Total 10 | . 3 . . . . 7 Derelict Logs Recovered 2 | . . 1 . 1 . . Drone Launches . | . . . . . . . Drone Recoveries . | . . . . . . . Exploration | -11 -10 -10 -10 -9 -8 -7 ------------- Run | Yrd Mat Min Exi Min Mat Fac Turns Passed 3605 | 57 460 1064 280 359 565 820 Spaces Moved 5448 | 52 775 698 515 610 905 1893 Core 2 | 2 . . . . . . Treads . | . . . . . . . Legs . | . . . . . . . Wheels 164 | 50 114 . . . . . Hover . | . . . . . . . Flight 5282 | . 661 698 515 610 905 1893 Fastest Speed 23 | 50 34 34 34 34 32 23 Average Speed 31 | 88 42 34 34 34 33 23 Slowest Speed 114 | 100 100 34 34 34 114 32 Overloaded Moves . | . . . . . . . Propulsion Burnouts . | . . . . . . . Robots Hopped 51 | . 6 6 . 6 14 19 Cave-ins Triggered . | . . . . . . . Exploration Rate (%) 66 | 3 87 94 71 81 80 46 Regions Visited 6 Branch Regions 3 Pre-discovered Areas . | . . . . . . . Known Exits Taken 5 | . 1 1 1 1 1 . Unknown Exits Taken 1 | 1 . . . . . . Scrap Searched 3 | . . 1 . 2 . . Spaces Dug . | . . . . . . . Terrain Destroyed 240 | . 58 . . 146 27 9 Melee . | . . . . . . . Projectile . | . . . . . . . AOE 240 | . 58 . . 146 27 9 Terrain Rammed . | . . . . . . . Walls Destroyed . | . . . . . . . Machines Disabled . | . . . . . . . Actions | -11 -10 -10 -10 -9 -8 -7 --------- Run | Yrd Mat Min Exi Min Mat Fac Total 6884 | 59 845 1492 619 717 1027 2125 Wait 1129 | 2 44 770 90 63 33 127 Move 5343 | 51 763 685 514 597 876 1857 Hop 48 | . 5 6 . 6 14 17 Pick Up 3 | . . . 1 1 1 . Fast Attach 23 | 6 3 1 . 4 2 7 Attach 1 | . . . . 1 . . Detach . | . . . . . . . Swap 19 | . 3 2 . . 8 6 Drop 13 | . . . . 4 5 4 Fire 195 | . 27 12 . 34 65 57 Melee . | . . . . . . . Ram . | . . . . . . . Kick . | . . . . . . . Crush . | . . . . . . . Escape Stasis 36 | . . . . . . 36 Rewire 14 | . . . 14 . . . Trap . | . . . . . . . Miscellaneous 60 | . . 16 . 7 23 14 Route ------- -11/Scrapyard -10/Materials (discovered 3 exits: *Mat x2 / *Min) -10/Mines (discovered 3 exits: *Mat x2 / *Exi) -10/Exiles (discovered 2 exits: *Min x2) -9/Mines (discovered 2 exits: *Mat x2) -8/Materials -7/Factory (discovered 4 exits: *Fac x2 / *Low x2) History --------- Turn | Location | Event 1 | -11/Scrapyard | Upgraded with Power slot (x1) 1 | -11/Scrapyard | Upgraded with Propulsion slot (x1) 1 | -11/Scrapyard | Upgraded with Utility slot (x1) 1 | -11/Scrapyard | Upgraded with Weapon slot (x1) 20 | -11/Scrapyard | Discovered new exit (range 15) 58 | -11/Scrapyard | Entered Materials 178 | -10/Materials | Upgraded with Propulsion slot (x1) 200 | -10/Materials | Discovered new exit (range 9) 313 | -10/Materials | Build established: Mutant 347 | -10/Materials | Discovered new exit (range 13) 380 | -10/Materials | Discovered new exit (range 7) 433 | -10/Materials | Reached level 2 448 | -10/Materials | Identified exit to Mines 518 | -10/Materials | Entered Mines 526 | -10/Mines | Joined a pair of Derelicts in attacking an 0b10 outpost 549 | -10/Mines | Discovered new exit (range 13) 557 | -10/Mines | Deemed a non-threat by the Exiles lab entrance 557 | -10/Mines | Discovered new exit (range 5) 612 | -10/Mines | Received a Mining Laser from a helpful Derelict 626 | -10/Mines | Assisted by bots powering up and referring to "LRC-V3" 664 | -10/Mines | Discovered new exit (range 8) 690 | -10/Mines | Identified exit to Materials 699 | -10/Mines | Met a Derelict who couldn't figure out how to use a Trap Extractor 1348 | -10/Mines | Upgraded with Utility slot (x1) 1426 | -10/Mines | Identified exit to Exiles 1582 | -10/Mines | Entered Exiles 1582 | -10/Exiles | Found Exiles lab destroyed 1582 | -10/Exiles | Accompanied by 5 allies 1587 | -10/Exiles | Discovered new exit (range 15) 1612 | -10/Exiles | Led the pair of lost Derelicts to a safe place 1681 | -10/Exiles | Discovered new exit (range 10) 1684 | -10/Exiles | Identified exit to Mines 1862 | -10/Exiles | Entered Mines 1862 | -9/Mines | Accompanied by 5 allies 1862 | -9/Mines | Reached level 3 1883 | -9/Mines | YI-UF0 nonchalantly dropped a Grenade Launcher on the ground 1913 | -9/Mines | Build established: Commander-Mutant 1918 | -9/Mines | Discovered new exit (range 15) 1931 | -9/Mines | Identified exit to Materials 1947 | -9/Mines | Found the Drone Emporium 1949 | -9/Mines | Found Prototype Device 1949 | -9/Mines | Identified Splice Drone Bay 1955 | -9/Mines | Upgraded with Utility slot (x1) 1973 | -9/Mines | Reached level 4 2003 | -9/Mines | Assembled infested the area 2054 | -9/Mines | Destroyed 17 combat bots 2066 | -9/Mines | Lost 3 allies 2107 | -9/Mines | Discovered exit to Materials (range 8) 2135 | -9/Mines | Learned Materials terminal intel 2163 | -9/Mines | Destroyed YI-UF0 2221 | -9/Mines | Entered Materials 2221 | -8/Materials | Accompanied by 1 ally 2222 | -8/Materials | Loaded intel: 11 terminal locations 2223 | -8/Materials | Reached level 5 2223 | -8/Materials | Reached level 6 2247 | -8/Materials | Garrison activated, responded to threat 2289 | -8/Materials | Reached level 7 2293 | -8/Materials | Build established: Hacker-Mutant 2500 | -8/Materials | Reached level 8 2559 | -8/Materials | Garrison activated, responded to threat 2562 | -8/Materials | Destroyed 10 combat bots 2670 | -8/Materials | Reached level 9 2754 | -8/Materials | Discovered new exit (range 8) 2759 | -8/Materials | Identified exit to Factory 2780 | -8/Materials | Build established: Hacker-Sprinter 2786 | -8/Materials | Entered Factory 2788 | -7/Factory | Reached level 10 2791 | -7/Factory | Discovered new exit (range 11) 2797 | -7/Factory | Identified exit to Lower Caves 2916 | -7/Factory | Reached level 11 2925 | -7/Factory | Upgraded with Propulsion slot (x2) 3094 | -7/Factory | Garrison activated, responded to threat 3117 | -7/Factory | Upgraded with Power slot (x1) 3151 | -7/Factory | Upgraded with Utility slot (x1) 3201 | -7/Factory | Discovered exit to Lower Caves (range 12) 3299 | -7/Factory | Upgraded with Utility slot (x1) 3316 | -7/Factory | Discovered new exit (range 13) 3334 | -7/Factory | Identified exit to Factory 3480 | -7/Factory | Reached level 12 3493 | -7/Factory | Discovered exit to Factory (range 15) 3597 | -7/Factory | Learned 2 Hub_04(d) zone layouts 3606 | -7/Factory | Self-destructed Last Messages --------------- 03558_ Administrator 4a reports 0b10 security level has risen to 2. 03564_ Administrator 4a reveals location of Heavy Explosive Trap. 03569_ Administrator 4a reveals location of Blade Trap. 03570_ Administrator 4a reveals location of Stasis Trap. 03586_ Administrator 4a reports 0b10 security level has lowered to 1. 03586_ B-48 Gladiator destroyed. 03587_ Acquired 40 matter. 03590_ Acquired 8 matter. 03593_ Acquired 6 matter. 03593_ Acquired 2 matter. 03596_ Acquired 8 matter. 03597_ >> SKIM: Stored Hub_04(d) zone layouts (x2). 03598_ G-47 Trooper destroyed. 03599_ Acquired 8 matter. Map ----- +----------------------------------------------------+ | ?????????????????????????????????????????????????? | | ?????????????????????????????????????????????????? | | ?????????????????????????????????????????????????? | | ?????????????????????????????????????????????????? | | ?????????????????????????????????????????????????? | | ?????????????????????????????????????????????????? | | ?????????????????????????????????????????????????? | | ?????????????? !?????????????????????????????????? | | ????????????? ![????????????????????????????????? | | ????????????? ^!!????????????????????????????????? | | ????????????? ??????? ???????????????????????? | | ????????????? ??????? ???????????????????????? | | ????????????? """ ???? ???????????????????????? | | ???????????## """ ???? ???????????????????????? | | ???????????# ^ """ ???? "??????????????????????? | | ???????????# +??? "??????????????????????? | | ???????????+ ^ """ #??? "??????????????????????? | | ???????????# """ #??? ??????????????????????? | | ??????????## """ #???#+#??????????????????????? | | #########?# ##??# #??????????????????????? | | # ### ^ """ #??# #??????????????????????? | | # + ^ """ #??# #??????????????????????? | | # ### """ #??# s????" ""??????????????? | | # #?# #??#s#??""" """ #??????????? | | # #?# """ #### # #??????????? | | # #?# """go o @s% #??????????? | | # [ #?# """ %# #??????????? | | # #?# #?###+########?????????? | | # #?# #?# ^ ?? #?????????? | | # #?# ! #?# ?? #?????????? | | # ## g #?# ? #?????????? | | # ## #############+#?# """ #?????????? | | # ## ????????????????# """"" #?????????? | | # # ????????????????# """"" #?????????? | | # + ????????????????# #?????????? | | # # ????????????????#] """ #?????????? | | # # #???????????????# """"" #?????????? | | ####+#### ##??????????????# """"" #?????????? | | #??????????????+ #?????????? | | #??????????????# """ #?????????? | | #???????" ?????# """"" ! #?????????? | | #???????" ????# """"" #?????????? | | #???????? ???# #?????????? | | ######## #????????? ??####+#######??????? "? | | #???? #???########+### #???????? " " | | #####? #?????? " " " | | ^ T" k ##### | | ? ^ " + ! * | | ? ^ ############## | | ##?????? ^ #???# | +----------------------------------------------------+ Best States ------------- Heat Dissipation 61 Energy Generation 44 Energy Capacity 475 Matter Stores 300 Matter Capacity 300 Sight Range 16 Terrain Scan Density 10 Armor Coverage 225 Resistance: KI 20 Resistance: TH 20 Resistance: EX 20 Resistance: EM 20 Resistance: I 20 Resistance: S 20 Resistance: P 20 Utility Shielding 66 Evasion (%) 73 Offensive Hacking 25 Defensive Hacking 26 Item Schematics ----------------- Hvy. Plasma Cannon | -7/Factory | Hacked Robot Schematics ------------------ None Fabricated ------------ Nothing Alien Tech Used ----------------- None Achievements -------------- None Challenges ------------ None RPGLIKE | -11 -10 -10 -10 -9 -8 -7 --------- Run | Yrd Mat Min Exi Min Mat Fac Levels Raised 11 | . 1 . . 2 5 3 XP Earned 21019 | 4000 1568 1200 200 2500 7227 4324 XP Spent 18900 | 2000 1500 1400 250 1100 1100 11550 Upgrades 31 | 4 8 2 1 1 1 14 Power Slot 2 | 1 . . . . . 1 Propulsion Slot 4 | 1 1 . . . . 2 Utility Slot 5 | 1 . 1 . 1 . 2 Weapon Slot 1 | 1 . . . . . . Heat Dissipation 6 | . 6 . . . . . Energy Generation 2 | . . . . . . 2 Mass Support 4 | . 1 1 . . 1 1 Inventory Capacity 1 | . . . 1 . . . Hack Attack % 3 | . . . . . . 3 Hack Defense % 3 | . . . . . . 3 Protomatter Created 543 | . 59 123 . 48 154 159 Integrity Restored 1141 | . . 276 . 124 459 282 Core 920 | . . 212 . 94 438 176 Parts 221 | . . 64 . 30 21 106 Protomatter Decayed 449 | . 44 201 . 145 . 59 Game ------ Seed MicroLinkedProjector Manual? 0 Play Time 01:08:28 Cumulative 118.8 hours Start 2024.09.22 @ 18:58:28 End 2024.09.23 @ 19:20:34 Sessions 5 Manual Loads 0 Difficulty Adventurer Special Mode Winter2019/RPGLIKE Game No. 67 Rogue 0 Adventurer 67 Explorer 0 Win Type - Total 6 Types 2/0/2/2/0/0/0/0/0 Lore% 58 Gallery% 55 Achievement% 70 Wizard Run 0 Options --------- Layout 2 ASCII 0 Keyboard 0 Movement Numpad Keybinds 0 Fullscreen 2 Font 24/Smallcaps Map View 50x44 Zoom Use 0% Tactical HUD 1 Map Filters NONE Filters NONE Steam 1 RUN: 852f70bb-cdae-4f02-b5ba-b583552fc3f0